fUST/lending_fUST_20250828
["ID","MTS","AMOUNT","RATE_DAILY","PERIOD"]
[381881103,1756386650709,-837.33,0.00019726,2]
[381881104,1756386650719,-480.0,0.00019726,2]
[381881105,1756386650728,-689.75,0.00019726,2]
[381881106,1756386650738,-480.0,0.00019726,2]
[381881107,1756386650747,-480.0,0.00019726,2]
[381881108,1756386650757,-480.0,0.00019726,2]
[381881109,1756386650766,-702.54,0.00019726,2]
[381881110,1756386650775,-480.0,0.00019726,2]
[381881111,1756386650784,-216.063153,0.00019726,2]
[381881112,1756386650794,-480.0,0.00019726,2]
[381881113,1756386650803,-480.0,0.00019726,2]
[381881114,1756386650812,-480.0,0.00019726,2]
[381881115,1756386650821,-480.0,0.00019726,2]
[381881116,1756386650831,-151.0,0.00019726,2]
[381881117,1756386650841,-151.0,0.00019726,2]
[381881118,1756386650850,-480.0,0.00019726,2]
[381881119,1756386650859,-502.71,0.00019726,2]
[381881120,1756386650869,-480.0,0.00019726,2]
[381881121,1756386650879,-480.0,0.00019726,2]
[381881122,1756386650888,-480.0,0.00019726,2]
[381881123,1756386650897,-929.07,0.00019726,2]
[381881124,1756386650907,-480.0,0.00019726,2]
[381881125,1756386650916,-480.0,0.00019726,2]
[381881126,1756386650927,-151.0,0.00019726,2]
[381881127,1756386650936,-151.0,0.00019726,2]
[381881128,1756386650946,-414.19910952,0.00019726,2]
[381881129,1756386650955,-151.0,0.00019726,2]
[381881130,1756386650965,-165.666316,0.00019726,2]
[381881131,1756386650974,-480.0,0.00019726,2]
[381881132,1756386650983,-480.0,0.00019726,2]
[381881133,1756386650993,-480.0,0.00019726,2]
[381881134,1756386651002,-854.63,0.00019726,2]
[381881135,1756386651011,-480.0,0.00019726,2]
[381881136,1756386651020,-480.0,0.00019726,2]
[381881137,1756386651029,-480.0,0.00019726,2]
[381881138,1756386651039,-151.0,0.00019726,2]
[381881139,1756386651048,-480.0,0.00019726,2]
[381881140,1756386651059,-480.0,0.00019726,2]
[381881141,1756386651068,-151.0,0.00019726,2]
[381881142,1756386651077,-151.0,0.00019726,2]
[381881143,1756386651087,-480.0,0.00019726,2]
[381881144,1756386651096,-480.0,0.00019726,2]
[381881145,1756386651105,-533.06,0.00019726,2]
[381881146,1756386651114,-480.0,0.00019726,2]
[381881147,1756386651124,-480.0,0.00019726,2]
[381881148,1756386651133,-480.0,0.00019726,2]
[381881149,1756386651143,-480.0,0.00019726,2]
[381881150,1756386651152,-480.0,0.00019726,2]
[381881151,1756386651162,-480.0,0.00019726,2]
[381881152,1756386651171,-480.0,0.00019726,2]
[381881153,1756386651181,-480.0,0.00019726,2]
[381881154,1756386651190,-500.81980917,0.00019726,2]
[381881155,1756386651199,-480.0,0.00019726,2]
[381881156,1756386651208,-484.14,0.00019726,2]
[381881157,1756386651217,-480.0,0.00019726,2]
[381881158,1756386651227,-480.0,0.00019726,2]
[381881159,1756386651235,-4633.72,0.00019726,2]
[381881160,1756386651245,-151.0,0.00019726,2]
[381881161,1756386651256,-231.38488,0.00019726,2]
[381881162,1756386651265,-151.43634913,0.00019726,2]
[381881163,1756386651275,-480.0,0.00019726,2]
[381881164,1756386651284,-151.4981627,0.00019726,2]
[381881165,1756386651294,-842.79,0.00019726,2]
[381881166,1756386651304,-2784.79,0.00019726,2]
[381881167,1756386651313,-480.0,0.00019726,2]
[381881168,1756386651323,-151.0,0.00019726,2]
[381881169,1756386651332,-151.0,0.00019726,2]
[381881170,1756386651342,-498.47,0.00019726,2]
[381881171,1756386651351,-742.62,0.00019726,2]
[381881172,1756386651361,-2295.47,0.00019726,2]
[381881173,1756386651371,-480.0,0.00019726,2]
[381881174,1756386651380,-587.16,0.00019726,2]
[381881175,1756386651390,-639.33,0.00019726,2]
[381881176,1756386651399,-480.0,0.00019726,2]
[381881177,1756386651409,-480.0,0.00019726,2]
[381881178,1756386651418,-918.21,0.00019726,2]
[381881179,1756386651428,-530.36,0.00019726,2]
[381881180,1756386651437,-791.28,0.00019726,2]
[381881181,1756386651446,-1590.95,0.00019726,2]
[381881182,1756386651456,-1048.35,0.00019726,2]
[381881183,1756386651466,-480.0,0.00019726,2]
[381881184,1756386651475,-480.0,0.00019726,2]
[381881185,1756386651484,-480.0,0.00019726,2]
[381881186,1756386651494,-480.0,0.00019726,2]
[381881187,1756386651504,-480.0,0.00019726,2]
[381881188,1756386651514,-2011.48,0.00019726,2]
[381881189,1756386651523,-151.0,0.00019726,2]
[381881190,1756386651534,-175.86202,0.00019726,2]
[381881191,1756386651545,-480.0,0.00019726,2]
[381881192,1756386651554,-480.0,0.00019726,2]
[381881193,1756386651563,-480.0,0.00019726,2]
[381881194,1756386651572,-480.0,0.00019726,2]
[381881195,1756386651581,-480.0,0.00019726,2]
[381881196,1756386651591,-480.0,0.00019726,2]
[381881197,1756386651600,-151.0,0.00019726,2]
[381881198,1756386651610,-151.0,0.00019726,2]
[381881199,1756386651619,-157.331838,0.00019726,2]
[381881200,1756386651629,-1182.32,0.00019726,2]
[381881201,1756386651639,-480.0,0.00019726,2]
[381881202,1756386651648,-1812.78,0.00019726,2]
[381881203,1756386651657,-151.0,0.00019726,2]
[381881204,1756386651666,-151.0,0.00019726,2]
[381881205,1756386651674,-506.69,0.00019726,2]
[381881206,1756386651683,-480.0,0.00019726,2]
[381881207,1756386651692,-1456.4,0.00019726,2]
[381881208,1756386651702,-480.0,0.00019726,2]
[381881209,1756386651714,-480.0,0.00019726,2]
[381881210,1756386651725,-1243.2,0.00019726,2]
[381881211,1756386651737,-1770.55,0.00019726,2]
[381881212,1756386651750,-151.0,0.00019726,2]
[381881213,1756386651762,-151.0,0.00019726,2]
[381881214,1756386651773,-480.0,0.00019726,2]
[381881215,1756386651785,-480.0,0.00019726,2]
[381881216,1756386651793,-480.0,0.00019726,2]
[381881217,1756386651802,-540.4,0.00019726,2]
[381881218,1756386651810,-593.98,0.00019726,2]
[381881219,1756386651817,-740.44,0.00019726,2]
[381881220,1756386651824,-3372.39,0.00019726,2]
[381881221,1756386651832,-480.0,0.00019726,2]
[381881222,1756386651841,-1000.0,0.00019726,2]
[381881223,1756386651850,-1000.0,0.00019726,2]
[381881224,1756386651859,-876.31,0.00019726,2]
[381881225,1756386651868,-510.13,0.00019726,2]
[381881226,1756386651878,-480.0,0.00019726,2]
[381881227,1756386651887,-480.0,0.00019726,2]
[381881228,1756386651896,-480.0,0.00019726,2]
[381881229,1756386651906,-495.87,0.00019726,2]
[381881230,1756386651915,-2446.17,0.00019726,2]
[381881231,1756386651925,-568.1,0.00019726,2]
[381881232,1756386651935,-1018.54,0.00019726,2]
[381881233,1756386651944,-871.0,0.00019726,2]
[381881234,1756386651954,-480.0,0.00019726,2]
[381881235,1756386651963,-480.0,0.00019726,2]
[381881236,1756386651973,-480.0,0.00019726,2]
[381881237,1756386651983,-480.0,0.00019726,2]
[381881238,1756386651992,-696.86,0.00019726,2]
[381881239,1756386652002,-942.7,0.00019726,2]
[381881240,1756386652011,-480.0,0.00019726,2]
[381881241,1756386652021,-151.0,0.00019726,2]
[381881242,1756386652031,-1627.3,0.00019726,2]
[381881243,1756386652041,-151.0,0.00019726,2]
[381881244,1756386652051,-151.0,0.00019726,2]
[381881245,1756386652060,-480.0,0.00019726,2]
[381881246,1756386652070,-151.0,0.00019726,2]
[381881247,1756386652080,-168.75659731,0.00019726,2]
[381881248,1756386652092,-480.0,0.00019726,2]
[381881249,1756386652102,-787.09,0.00019726,2]
[381881250,1756386652112,-609.92,0.00019726,2]
[381881251,1756386652122,-480.0,0.00019726,2]
[381881252,1756386652131,-480.0,0.00019726,2]
[381881253,1756386652141,-480.0,0.00019726,2]
[381881254,1756386652151,-536.76,0.00019726,2]
[381881255,1756386652161,-480.0,0.00019726,2]
[381881256,1756386652171,-587.82,0.00019726,2]
[381881257,1756386652180,-480.0,0.00019726,2]
[381881258,1756386652190,-3033.61,0.00019726,2]
[381881259,1756386652200,-846.54,0.00019726,2]
[381881260,1756386652210,-480.0,0.00019726,2]
[381881261,1756386652219,-480.0,0.00019726,2]
[381881262,1756386652229,-480.0,0.00019726,2]
[381881263,1756386652239,-3571.66,0.00019726,2]
[381881264,1756386652248,-480.98841453,0.00019726,2]
[381881265,1756386652258,-2236.18,0.00019726,2]
[381881266,1756386652267,-480.0,0.00019726,2]
[381881267,1756386652277,-480.0,0.00019726,2]
[381881268,1756386652286,-480.0,0.00019726,2]
[381881269,1756386652296,-480.0,0.00019726,2]
[381881270,1756386652306,-2804.02,0.00019726,2]
[381881271,1756386652316,-721.69,0.00019726,2]
[381881272,1756386652326,-2608.45,0.00019726,2]
[381881273,1756386652335,-480.0,0.00019726,2]
[381881274,1756386652345,-480.0,0.00019726,2]
[381881275,1756386652355,-1478.73,0.00019726,2]
[381881276,1756386652364,-480.0,0.00019726,2]
[381881277,1756386652374,-569.37,0.00019726,2]
[381881278,1756386652384,-637.83,0.00019726,2]
[381881279,1756386652393,-151.0,0.00019726,2]
[381881280,1756386652403,-151.0,0.00019726,2]
[381881281,1756386652413,-151.0,0.00019726,2]
[381881282,1756386652423,-151.0,0.00019726,2]
[381881283,1756386652434,-205.01652649,0.00019726,2]
[381881284,1756386652443,-151.0,0.00019726,2]
[381881285,1756386652453,-151.0,0.00019726,2]
[381881286,1756386652463,-1297.17,0.00019726,2]
[381881287,1756386652473,-480.0,0.00019726,2]
[381881288,1756386652483,-1131.71,0.00019726,2]
[381881289,1756386652492,-533.44,0.00019726,2]
[381881290,1756386652502,-480.0,0.00019726,2]
[381881291,1756386652511,-639.96,0.00019726,2]
[381881292,1756386652521,-1534.57,0.00019726,2]
[381881293,1756386652531,-480.0,0.00019726,2]
[381881294,1756386652543,-651.1,0.00019726,2]
[381881295,1756386652554,-480.0,0.00019726,2]
[381881296,1756386652564,-717.2,0.00019726,2]
[381881297,1756386652575,-480.0,0.00019726,2]
[381881298,1756386652586,-3391.57,0.00019726,2]
[381881299,1756386652596,-605.88,0.00019726,2]
[381881300,1756386652605,-480.0,0.00019726,2]
[381881301,1756386652614,-480.0,0.00019726,2]
[381881302,1756386652624,-151.0,0.00019726,2]
[381881303,1756386652633,-151.0,0.00019726,2]
[381881304,1756386652643,-151.0,0.00019726,2]
[381881305,1756386652653,-151.0,0.00019726,2]
[381881306,1756386652663,-1118.37,0.00019726,2]
[381881307,1756386652672,-151.0,0.00019726,2]
[381881308,1756386652682,-151.0,0.00019726,2]
[381881309,1756386652692,-480.0,0.00019726,2]
[381881310,1756386652868,-2399.97,0.00019726,2]
[381881311,1756386652878,-587.86,0.00019726,2]
[381881312,1756386652888,-5606.79,0.00019726,2]
[381881313,1756386652898,-151.0,0.00019726,2]
[381881314,1756386652907,-151.43310379,0.00019726,2]
[381881315,1756386652916,-535.23,0.00019726,2]
[381881316,1756386652926,-489.45,0.00019726,2]
[381881317,1756386652935,-480.0,0.00019726,2]
[381881318,1756386652944,-480.0,0.00019726,2]
[381881319,1756386652955,-151.0,0.00019726,2]
[381881320,1756386652964,-151.0,0.00019726,2]
[381881321,1756386652974,-480.0,0.00019726,2]
[381881322,1756386652983,-2597.91,0.00019726,2]
[381881323,1756386652992,-480.0,0.00019726,2]
[381881324,1756386653002,-1698.72,0.00019726,2]
[381881325,1756386653011,-151.0,0.00019726,2]
[381881326,1756386653020,-151.0,0.00019726,2]
[381881327,1756386653030,-634.82,0.00019726,2]
[381881328,1756386653039,-1185.27,0.00019726,2]
[381881329,1756386653048,-480.0,0.00019726,2]
[381881330,1756386653060,-607.19,0.00019726,2]
[381881331,1756386653070,-480.0,0.00019726,2]
[381881332,1756386653080,-480.0,0.00019726,2]
[381881333,1756386653090,-480.0,0.00019726,2]
[381881334,1756386653099,-150000.0,0.00019726,2]
[381881335,1756386653109,-48919.50070697,0.00019726,2]
[381881336,1756386653118,-26137.57880936,0.00019763,2]
[381881337,1756386653128,-500.0,0.00019773,2]
[381881338,1756386653137,-500.0,0.00019773,2]
[381881339,1756386653147,-500.0,0.00019773,2]
[381881340,1756386653156,-500.0,0.00019773,2]
[381881341,1756386653166,-500.0,0.00019773,2]
[381881342,1756386653176,-500.0,0.00019773,2]
[381881343,1756386653185,-500.0,0.00019773,2]
[381881344,1756386653195,-500.0,0.00019773,2]
[381881345,1756386653204,-500.0,0.00019773,2]
[381881346,1756386653214,-500.0,0.00019773,2]
[381881347,1756386653224,-500.0,0.00019773,2]
[381881348,1756386653233,-500.0,0.00019773,2]
[381881349,1756386653243,-502.20896326,0.00019773,2]
[381881350,1756386653253,-500.0,0.00019773,2]
[381881351,1756386653263,-500.0,0.00019773,2]
[381881352,1756386653273,-500.0,0.00019773,2]
[381881353,1756386653283,-500.0,0.00019773,2]
[381881354,1756386653292,-500.0,0.00019773,2]
[381881355,1756386653302,-500.0,0.00019773,2]
[381881356,1756386653311,-500.0,0.00019773,2]
[381881357,1756386653321,-500.0,0.00019773,2]
[381881358,1756386653330,-500.0,0.00019773,2]
[381881359,1756386653350,-500.0,0.00019773,2]
[381881360,1756386653362,-637.49366838,0.00019773,2]
[381881361,1756386653372,-500.0,0.00019773,2]
[381881362,1756386653383,-500.0,0.00019773,2]
[381881363,1756386653393,-500.0,0.00019773,2]
[381881364,1756386653404,-500.0,0.00019773,2]
[381881365,1756386653414,-500.0,0.00019773,2]
[381881366,1756386653424,-500.0,0.00019773,2]
[381881367,1756386653435,-1000.0,0.0001978,2]
[381881368,1756386653446,-168.0,0.00019793,2]
[381881369,1756386653456,-613.060361,0.00019863,2]
[381881370,1756386653466,-3005.95263602,0.00019886,2]
[381881371,1756386653476,-168.0,0.00019889,2]
[381881372,1756386653486,-200.0,0.0001989,3]
[381881373,1756386653496,-500.0,0.00019901,2]
[381881374,1756386653508,-13125.13035948,0.00019921,2]
[381881375,1756386653518,-150.0,0.00019965,2]
[381881376,1756386653528,-218.5,0.00019965,2]
[381881377,1756386653541,-207.677,0.00019965,2]
[381881378,1756386653551,-222.323,0.00019965,2]
[381881379,1756386653562,-204.131,0.00019965,2]
[381881380,1756386653572,-257.299,0.00019965,2]
[381881381,1756386653583,-150.0,0.00019965,2]
[381881382,1756386653592,-261.808,0.00019965,2]
[381881383,1756386653603,-220.354,0.00019965,2]
[381881384,1756386653613,-974.0,0.00019965,2]
[381881385,1756386653624,-2157.0,0.00019965,2]
[381881386,1756386653634,-638.0,0.00019965,2]
[381881387,1756386653644,-540.926,0.0001998,2]
[381881388,1756386653654,-1407.82912797,0.0001999,2]
[381881389,1756386653664,-151.0,0.0002,2]
[381881390,1756386653674,-871.0,0.0002,2]
[381881391,1756386653683,-151.0,0.0002,2]
[381881392,1756386653694,-3000.0,0.0002,2]
[381881393,1756386653704,-480.0,0.0002,2]
[381881394,1756386653714,-480.0,0.0002,2]
[381881395,1756386653724,-480.0,0.0002,2]
[381881396,1756386653734,-480.0,0.0002,2]
[381881397,1756386653743,-532.99,0.0002,2]
[381881398,1756386653753,-480.0,0.0002,2]
[381881399,1756386653763,-480.0,0.0002,2]
[381881400,1756386653772,-150.0,0.0002,2]
[381881401,1756386653782,-480.0,0.0002,2]
[381881402,1756386653792,-480.0,0.0002,2]
[381881403,1756386653803,-480.0,0.0002,2]
[381881404,1756386653812,-480.0,0.0002,2]
[381881405,1756386653821,-463.81764555,0.0002,2]
[381881406,1756386653831,-677.82,0.0002,2]
[381881407,1756386653840,-480.0,0.0002,2]
[381881408,1756386653850,-480.0,0.0002,2]
[381881409,1756386653859,-480.0,0.0002,2]
[381881410,1756386653869,-480.0,0.0002,2]
[381881411,1756386653879,-582.15,0.0002,2]
[381881412,1756386653888,-480.0,0.0002,2]
[381881413,1756386653898,-151.0,0.0002,2]
[381881414,1756386653907,-480.0,0.0002,2]
[381881415,1756386653917,-585.05315856,0.0002,2]
[381881416,1756386653926,-482.41,0.0002,2]
[381881417,1756386653936,-480.0,0.0002,2]
[381881418,1756386653946,-480.0,0.0002,2]
[381881419,1756386653956,-480.0,0.0002,2]
[381881420,1756386653965,-480.0,0.0002,2]
[381881421,1756386653974,-480.0,0.0002,2]
[381881422,1756386653984,-480.0,0.0002,2]
[381881423,1756386653994,-480.0,0.0002,2]
[381881424,1756386654004,-480.0,0.0002,2]
[381881425,1756386654014,-480.0,0.0002,2]
[381881426,1756386654024,-480.0,0.0002,2]
[381881427,1756386654033,-480.0,0.0002,2]
[381881428,1756386654043,-480.0,0.0002,2]
[381881429,1756386654053,-480.0,0.0002,2]
[381881430,1756386654062,-480.0,0.0002,2]
[381881431,1756386654072,-724.68,0.0002,2]
[381881432,1756386654081,-480.0,0.0002,2]
[381881433,1756386654091,-480.0,0.0002,2]
[381881434,1756386654100,-960.23,0.0002,2]
[381881435,1756386654110,-480.0,0.0002,2]
[381881436,1756386654120,-583.5,0.0002,2]
[381881437,1756386654130,-480.0,0.0002,2]
[381881438,1756386654140,-480.0,0.0002,2]
[381881439,1756386654150,-785.81,0.0002,2]
[381881440,1756386654160,-480.0,0.0002,2]
[381881441,1756386654169,-480.0,0.0002,2]
[381881442,1756386654179,-480.0,0.0002,2]
[381881443,1756386654188,-480.0,0.0002,2]
[381881444,1756386654197,-480.0,0.0002,2]
[381881445,1756386654207,-480.0,0.0002,2]
[381881446,1756386654217,-480.0,0.0002,2]
[381881447,1756386654226,-480.0,0.0002,2]
[381881448,1756386654235,-480.0,0.0002,2]
[381881449,1756386654245,-504.45,0.0002,2]
[381881450,1756386654255,-480.0,0.0002,2]
[381881451,1756386654264,-151.0,0.0002,2]
[381881452,1756386654274,-480.0,0.0002,2]
[381881453,1756386654283,-480.0,0.0002,2]
[381881454,1756386654293,-480.0,0.0002,2]
[381881455,1756386654303,-480.0,0.0002,2]
[381881456,1756386654313,-480.0,0.0002,2]
[381881457,1756386654323,-653.49,0.0002,2]
[381881458,1756386654333,-1494.89,0.0002,2]
[381881459,1756386654342,-480.0,0.0002,2]
[381881460,1756386654352,-510.67,0.0002,2]
[381881461,1756386654362,-480.0,0.0002,2]
[381881462,1756386654371,-480.0,0.0002,2]
[381881463,1756386654381,-480.0,0.0002,2]
[381881464,1756386654390,-480.0,0.0002,2]
[381881465,1756386654400,-480.0,0.0002,2]
[381881466,1756386654410,-480.0,0.0002,2]
[381881467,1756386654420,-907.03,0.0002,2]
[381881468,1756386654430,-592.12934867,0.0002,2]
[381881469,1756386654440,-480.0,0.0002,2]
[381881470,1756386654449,-672.81,0.0002,2]
[381881471,1756386654459,-480.0,0.0002,2]
[381881472,1756386654468,-480.0,0.0002,2]
[381881473,1756386654478,-480.0,0.0002,2]
[381881474,1756386654487,-480.0,0.0002,2]
[381881475,1756386654497,-480.0,0.0002,2]
[381881476,1756386654507,-843.18,0.0002,2]
[381881477,1756386654517,-480.0,0.0002,2]
[381881478,1756386654532,-480.0,0.0002,2]
[381881479,1756386654548,-639.17,0.0002,2]
[381881480,1756386654559,-211.77244617,0.0002,2]
[381881481,1756386654569,-480.0,0.0002,2]
[381881482,1756386654579,-480.0,0.0002,2]
[381881483,1756386654590,-480.0,0.0002,2]
[381881484,1756386654599,-480.0,0.0002,2]
[381881485,1756386654609,-480.0,0.0002,2]
[381881486,1756386654619,-183.473993,0.0002,2]
[381881487,1756386654628,-480.0,0.0002,2]
[381881488,1756386654638,-480.0,0.0002,2]
[381881489,1756386654648,-480.0,0.0002,2]
[381881490,1756386654657,-480.0,0.0002,2]
[381881491,1756386654667,-409.19852128,0.0002,2]
[381881492,1756386654677,-480.0,0.0002,2]
[381881493,1756386654687,-480.0,0.0002,2]
[381881494,1756386654696,-480.0,0.0002,2]
[381881495,1756386654706,-480.0,0.0002,2]
[381881496,1756386654717,-151.0,0.0002,2]
[381881497,1756386654726,-480.0,0.0002,2]
[381881498,1756386654736,-494.25,0.0002,2]
[381881499,1756386654745,-151.0,0.0002,2]
[381881500,1756386654755,-480.0,0.0002,2]
[381881501,1756386654764,-215.292911,0.0002,7]
[381881502,1756386654774,-480.0,0.0002,2]
[381881503,1756386654784,-480.0,0.0002,2]
[381881504,1756386654793,-482.62,0.0002,2]
[381881505,1756386654803,-480.0,0.0002,2]
[381881506,1756386654812,-480.0,0.0002,2]
[381881507,1756386654822,-486.74,0.0002,2]
[381881508,1756386654831,-513.42,0.0002,2]
[381881509,1756386654840,-480.0,0.0002,2]
[381881510,1756386654851,-509.26,0.0002,2]
[381881511,1756386654861,-480.0,0.0002,2]
[381881512,1756386654874,-480.0,0.0002,2]
[381881513,1756386654884,-480.0,0.0002,2]
[381881514,1756386654895,-157.23025,0.0002,7]
[381881515,1756386654905,-480.0,0.0002,2]
[381881516,1756386654915,-480.0,0.0002,2]
[381881517,1756386654925,-957.15,0.0002,2]
[381881518,1756386654935,-480.0,0.0002,2]
[381881519,1756386654944,-676.42,0.0002,2]
[381881520,1756386654955,-480.0,0.0002,2]
[381881521,1756386654966,-789.26,0.0002,2]
[381881522,1756386654977,-480.0,0.0002,2]
[381881523,1756386654986,-480.0,0.0002,2]
[381881524,1756386654996,-572.21,0.0002,2]
[381881525,1756386655005,-837.33,0.0002,2]
[381881526,1756386655015,-689.75,0.0002,2]
[381881527,1756386655024,-480.0,0.0002,2]
[381881528,1756386655033,-480.0,0.0002,2]
[381881529,1756386655043,-480.0,0.0002,2]
[381881530,1756386655052,-702.54,0.0002,2]
[381881531,1756386655062,-480.0,0.0002,2]
[381881532,1756386655071,-480.0,0.0002,2]
[381881533,1756386655081,-480.0,0.0002,2]
[381881534,1756386655091,-480.0,0.0002,2]
[381881535,1756386655101,-151.0,0.0002,2]
[381881536,1756386655111,-480.0,0.0002,2]
[381881537,1756386655121,-502.71,0.0002,2]
[381881538,1756386655132,-480.0,0.0002,2]
[381881539,1756386655142,-480.0,0.0002,2]
[381881540,1756386655152,-929.07,0.0002,2]
[381881541,1756386655162,-480.0,0.0002,2]
[381881542,1756386655172,-480.0,0.0002,2]
[381881543,1756386655181,-151.0,0.0002,2]
[381881544,1756386655192,-480.0,0.0002,2]
[381881545,1756386655201,-854.63,0.0002,2]
[381881546,1756386655210,-480.0,0.0002,2]
[381881547,1756386655219,-480.0,0.0002,2]
[381881548,1756386655296,-480.0,0.0002,2]
[381881549,1756386655306,-480.0,0.0002,2]
[381881550,1756386655315,-480.0,0.0002,2]
[381881551,1756386655325,-480.0,0.0002,2]
[381881552,1756386655334,-533.06,0.0002,2]
[381881553,1756386655343,-480.0,0.0002,2]
[381881554,1756386655353,-355.54,0.0002,2]
[381881555,1756386655362,-480.0,0.0002,2]
[381881556,1756386655371,-480.0,0.0002,2]
[381881557,1756386655381,-480.0,0.0002,2]
[381881558,1756386655391,-480.0,0.0002,2]
[381881559,1756386655400,-480.0,0.0002,2]
[381881560,1756386655410,-611.67699423,0.0002,2]
[381881561,1756386655421,-480.0,0.0002,2]
[381881562,1756386655431,-484.14,0.0002,2]
[381881563,1756386655441,-480.0,0.0002,2]
[381881564,1756386655453,-480.0,0.0002,2]
[381881565,1756386655464,-4633.72,0.0002,2]
[381881566,1756386655473,-480.0,0.0002,2]
[381881567,1756386655483,-842.79,0.0002,2]
[381881568,1756386655492,-2784.79,0.0002,2]
[381881569,1756386655502,-480.0,0.0002,2]
[381881570,1756386655511,-151.0,0.0002,2]
[381881571,1756386655520,-498.47,0.0002,2]
[381881572,1756386655529,-742.62,0.0002,2]
[381881573,1756386655542,-2295.47,0.0002,2]
[381881574,1756386655551,-480.0,0.0002,2]
[381881575,1756386655560,-587.16,0.0002,2]
[381881576,1756386655569,-639.33,0.0002,2]
[381881577,1756386655578,-480.0,0.0002,2]
[381881578,1756386655587,-480.0,0.0002,2]
[381881579,1756386655596,-918.21,0.0002,2]
[381881580,1756386655605,-530.36,0.0002,2]
[381881581,1756386655614,-791.28,0.0002,2]
[381881582,1756386655623,-1590.95,0.0002,2]
[381881583,1756386655632,-1048.35,0.0002,2]
[381881584,1756386655641,-480.0,0.0002,2]
[381881585,1756386655650,-480.0,0.0002,2]
[381881586,1756386655660,-480.0,0.0002,2]
[381881587,1756386655669,-480.0,0.0002,2]
[381881588,1756386655678,-2011.48,0.0002,2]
[381881589,1756386655688,-480.0,0.0002,2]
[381881590,1756386655697,-480.0,0.0002,2]
[381881591,1756386655707,-480.0,0.0002,2]
[381881592,1756386655719,-480.0,0.0002,2]
[381881593,1756386655730,-151.0,0.0002,2]
[381881594,1756386655739,-1182.32,0.0002,2]
[381881595,1756386655748,-480.0,0.0002,2]
[381881596,1756386655758,-1812.78,0.0002,2]
[381881597,1756386655767,-151.0,0.0002,2]
[381881598,1756386655777,-506.69,0.0002,2]
[381881599,1756386655787,-480.0,0.0002,2]
[381881600,1756386655796,-1456.4,0.0002,2]
[381881601,1756386655806,-480.0,0.0002,2]
[381881602,1756386655815,-1243.2,0.0002,2]